Workbook

Sheet Feuil1
A1: Supplementary table 3. Cause-specific differences in telomeric gene expression between HCC and normal liver samples.
B3: Normal | C3: HCC | G3: p
B4: (n = 12) | C4: HBV (n = 10) | D4: HCV (n = 10) | E4: Alcohol (n = 10) | F4: Idiopahtic (n=10) | G4: for HBV | H4: for HCV | I4: for Alcohol | J4: for Idiopathic
A5: Shelterin
A6: POT1 | B6: 0.0021 | C6: 0 | D6: 0.0203 | E6: 0.006 | F6: 0.0086 | G6: ns (0.083) | H6: 0.002 | I6: ns | J6: 0.009
A7: PTOP | B7: 0.0094 | C7: 0 | D7: 0.0064 | E7: 0.0071 | F7: 0.0038 | G7: 0.017 | H7: ns | I7: ns | J7: ns
A8: RAP1 | B8: 0.157 | C8: 0 | D8: 0.5059 | E8: 0.2538 | F8: 0.2694 | G8: 0.017 | H8: 0.007 | I8: ns | J8: ns (0.069)
A9: TIN2 | B9: 0.351 | C9: 0.0033 | D9: 0.0581 | E9: 0.0876 | F9: 0.0572 | G9: 0.001 | H9: ns | I9: 0.001 | J9: ns (0.059)
A10: TRF1 | B10: 0.5585 | C10: 0.0209 | D10: 0.16257 | E10: 0.2886 | F10: 0.2746 | G10: <10-4 | H10: ns | I10: ns (0.058) | J10: ns
A11: TRF2 | B11: 0.0016 | C11: 0 | D11: 0.00145 | E11: 0.0012 | F11: 0.0016 | G11: 0.01 | H11: ns | I11: ns | J11: ns
A13: Non Shelterin
A14: HMRE11A | B14: 0.0187 | C14: 0 | D14: 0.0811 | E14: 0.0536 | F14: 0.0662 | G14: ns | H14: 0.016 | I14: 0.028 | J14: 0.004
A15: HMRE11B | B15: 0.0359 | C15: 0 | D15: 0.0508 | E15: 0.085 | F15: 0.0468 | G15: 0.002 | H15: ns | I15: ns (0.058) | J15: ns
A16: Ku70 | B16: 0.0955 | C16: 0.0024 | D16: 0.2418 | E16: 0.1645 | F16: 0.1798 | G16: <10-4 | H16: 0.02 | I16: 0.018 | J16: 0.006
A17: Ku80 | B17: 0.0408 | C17: 0.0015 | D17: 0.1494 | E17: 0.0853 | F17: 0.1283 | G17: 0.01 | H17: 0.012 | I17: 0.012 | J17: 0.003
A18: NBS1 | B18: 0.0266 | C18: 0.0024 | D18: 0.0317 | E18: 0.0501 | F18: 0.0253 | G18: 0.007 | H18: ns | I18: ns | J18: ns
A19: RAD50 | B19: 0.003 | C19: 0 | D19: 0.0118 | E19: 0.0101 | F19: 0.0065 | G19: ns | H19: 0.012 | I19: 0.034 | J19: 0.05
A20: TANK1 | B20: 0.0468 | C20: 0 | D20: 0.0761 | E20: 0.0869 | F20: 0.0629 | G20: <10-4 | H20: ns | I20: 0.003 | J20: ns
A21: TANK2 | B21: 0.0129 | C21: 0.0006 | D21: 0.0255 | E21: 0.0171 | F21: 0.0204 | G21: ns (0.056) | H21: ns | I21: ns | J21: 0.036
A22: Pinx1 | B22: 0.0131 | C22: 0.0049 | D22: 0.0107 | E22: 0.0165 | F22: 0.0062 | G22: ns | H22: ns | I22: ns | J22: ns

Sheet Feuil2
A1: Supplementary table 2. Cause-specific differences in telomeric gene expression between HCC and normal liver samples.
K2: Ratio -tout | P2: Ratio-significatif
B3: Normal | C3: HCC | G3: p | K3: hbv | L3: hcv | M3: oh | N3: idio | P3: hbv | Q3: hcv | R3: oh | S3: idio
B4: (n = 12) | C4: HBV (n = 10) | D4: HCV (n = 10) | E4: Alcohol (n = 10) | F4: Idiopahtic (n=10) | G4: for HBV | H4: for HCV | I4: for Alcohol | J4: for Idiopathic
A5: Shelterin
A6: POT1 | B6: 0.0021 | C6: 0 | D6: 0.0203 | E6: 0.006 | F6: 0.0086 | G6: ns (0.083) | H6: 0.002 | I6: ns | J6: 0.009 | K6: =C6/B6 -> 0 | L6: =D6/B6 -> 9.666666667 | M6: =E6/B6 -> 2.857142857 | N6: =F6/B6 -> 4.095238095
A7: PTOP | B7: 0.0094 | C7: 0 | D7: 0.0064 | E7: 0.0071 | F7: 0.0038 | G7: 0.017 | H7: ns | I7: ns | J7: ns | K7: 0 | L7: 0.6808510638 | M7: 0.7553191489 | N7: =F7/B7 -> 0.4042553191
A8: RAP1 | B8: 0.157 | C8: 0 | D8: 0.5059 | E8: 0.2538 | F8: 0.2694 | G8: 0.017 | H8: 0.007 | I8: ns | J8: ns (0.069) | K8: 0 | L8: 3.222292994 | M8: 1.61656051 | N8: =F8/B8 -> 1.715923567
A9: TIN2 | B9: 0.351 | C9: 0.0033 | D9: 0.0581 | E9: 0.0876 | F9: 0.0572 | G9: 0.001 | H9: ns | I9: 0.001 | J9: ns (0.059) | K9: 0.009401709402 | L9: 0.1655270655 | M9: 0.2495726496 | N9: 0.162962963
A10: TRF1 | B10: 0.5585 | C10: 0.0209 | D10: 0.16257 | E10: 0.2886 | F10: 0.2746 | G10: <10-4 | H10: ns | I10: ns (0.058) | J10: ns | K10: 0.03742166517 | L10: 0.2910832587 | M10: 0.5167412713 | N10: 0.4916741271
A11: TRF2 | B11: 0.0016 | C11: 0 | D11: 0.00145 | E11: 0.0012 | F11: 0.0016 | G11: 0.01 | H11: ns | I11: ns | J11: ns | K11: 0 | L11: 0.90625 | M11: 0.75 | N11: 1
A13: Non Shelterin
A14: HMRE11A | B14: 0.0187 | C14: 0 | D14: 0.0811 | E14: 0.0536 | F14: 0.0662 | G14: ns | H14: 0.016 | I14: 0.028 | J14: 0.004 | K14: =C14/B14 -> 0 | L14: =D14/B14 -> 4.336898396 | M14: =E14/B14 -> 2.86631016 | N14: =F14/B14 -> 3.540106952
A15: HMRE11B | B15: 0.0359 | C15: 0 | D15: 0.0508 | E15: 0.085 | F15: 0.0468 | G15: 0.002 | H15: ns | I15: ns (0.058) | J15: ns | K15: 0 | L15: 1.415041783 | M15: 2.367688022 | N15: 1.30362117
A16: Ku70 | B16: 0.0955 | C16: 0.0024 | D16: 0.2418 | E16: 0.1645 | F16: 0.1798 | G16: <10-4 | H16: 0.02 | I16: 0.018 | J16: 0.006 | K16: 0.02513089005 | L16: 2.531937173 | M16: 1.722513089 | N16: 1.882722513
A17: Ku80 | B17: 0.0408 | C17: 0.0015 | D17: 0.1494 | E17: 0.0853 | F17: 0.1283 | G17: 0.01 | H17: 0.012 | I17: 0.012 | J17: 0.003 | K17: 0.03676470588 | L17: 3.661764706 | M17: 2.090686275 | N17: 3.144607843
A18: NBS1 | B18: 0.0266 | C18: 0.0024 | D18: 0.0317 | E18: 0.0501 | F18: 0.0253 | G18: 0.007 | H18: ns | I18: ns | J18: ns | K18: 0.09022556391 | L18: 1.191729323 | M18: 1.883458647 | N18: 0.9511278195
A19: RAD50 | B19: 0.003 | C19: 0 | D19: 0.0118 | E19: 0.0101 | F19: 0.0065 | G19: ns | H19: 0.012 | I19: 0.034 | J19: 0.05 | K19: 0 | L19: 3.933333333 | M19: 3.366666667 | N19: 2.166666667
A20: TANK1 | B20: 0.0468 | C20: 0 | D20: 0.0761 | E20: 0.0869 | F20: 0.0629 | G20: <10-4 | H20: ns | I20: 0.003 | J20: ns | K20: 0 | L20: 1.626068376 | M20: 1.856837607 | N20: 1.344017094
A21: TANK2 | B21: 0.0129 | C21: 0.0006 | D21: 0.0255 | E21: 0.0171 | F21: 0.0204 | G21: ns (0.056) | H21: ns | I21: ns | J21: 0.036 | K21: 0.04651162791 | L21: 1.976744186 | M21: 1.325581395 | N21: 1.581395349
A22: Pinx1 | B22: 0.0131 | C22: 0.0049 | D22: 0.0107 | E22: 0.0165 | F22: 0.0062 | G22: ns | H22: ns | I22: ns | J22: ns | K22: 0.3740458015 | L22: 0.8167938931 | M22: 1.259541985 | N22: 0.4732824427
E26: HBV vs | F26: n identiques | G26: percent identity | H26: HCV vs | I26: n identiques | J26: percent identity | K26: OH vs | L26: n identiques | M26: percent identity | N26: idio vs | O26: n identiques | P26: percent identity
E27: HCV | F27: 1 | G27: =F27/15*100 -> 6.666666667 | H27: HBV | I27: 1 | J27: =I27/15*100 -> 6.666666667 | K27: HBV | L27: 2 | M27: =L27/15*100 -> 13.33333333 | N27: HBV | O27: 1 | P27: =O27/15*100 -> 6.666666667
E28: OH | F28: 2 | G28: =F28/15*100 -> 13.33333333 | H28: OH | I28: 10 | J28: 66.66666667 | K28: HCV | L28: 10 | M28: 66.66666667 | N28: HCV | O28: 12 | P28: 80
E29: Idio | F29: 1 | G29: 6.666666667 | H29: Idio | I29: 12 | J29: 80 | K29: Idio | L29: 10 | M29: 66.66666667 | N29: OH | O29: 10 | P29: 66.66666667
